[Event "*** SCC Grand Prix: Titled Tuesday Blitz"]
[Site "Chess.com"]
[Date "2020.06.23"]
[Round "1"]
[White "HunterBRR"]
[Black "rubhani"]
[Result "0-1"]
[WhiteElo "2099"]
[BlackElo "2510"]
[TimeControl "180+1"]
[EndTime "10:06:52 PDT"]
[Termination "rubhani won on time"]

1. d4 {[%clk 0:03:00.9]} 1... Nf6 {[%clk 0:02:46]} 2. c4 {[%clk 0:03:00]} 2...
c5 {[%clk 0:02:45.3]} 3. d5 {[%clk 0:02:59.7]} 3... b5 {[%clk 0:02:45.5]} 4. Nf3
{[%clk 0:02:58.4]} 4... g6 {[%clk 0:02:44.3]} 5. Bg5 {[%clk 0:02:47.1]} 5... Bg7
{[%clk 0:02:43.9]} 6. Qc2 {[%clk 0:02:43.4]} 6... O-O {[%clk 0:02:31.2]} 7. e4
{[%clk 0:02:40.1]} 7... bxc4 {[%clk 0:02:02.3]} 8. Nc3 {[%clk 0:02:15.7]} 8...
d6 {[%clk 0:01:52.8]} 9. Bxc4 {[%clk 0:02:12.5]} 9... Nbd7 {[%clk 0:01:51.3]}
10. O-O {[%clk 0:02:08.5]} 10... Rb8 {[%clk 0:01:50.1]} 11. Rab1 {[%clk
0:01:54.7]} 11... Rb4 {[%clk 0:01:37.4]} 12. Be2 {[%clk 0:01:45.4]} 12... Rb8
{[%clk 0:01:26.4]} 13. Rfe1 {[%clk 0:01:25.9]} 13... Qa5 {[%clk 0:01:20]} 14.
Nd2 {[%clk 0:01:19.7]} 14... Ba6 {[%clk 0:01:19]} 15. Bxa6 {[%clk 0:00:55.6]}
15... Qxa6 {[%clk 0:01:19.9]} 16. b3 {[%clk 0:00:52]} 16... Ne5 {[%clk
0:01:18.2]} 17. f4 {[%clk 0:00:35.2]} 17... Nd3 {[%clk 0:01:11.3]} 18. Re2
{[%clk 0:00:18.1]} 18... Nh5 {[%clk 0:00:59.3]} 19. Nc4 {[%clk 0:00:14.4]} 19...
Bd4+ {[%clk 0:00:56.8]} 20. Kh1 {[%clk 0:00:12.3]} 20... Nhxf4 {[%clk
0:00:56.6]} 21. Bxf4 {[%clk 0:00:07.8]} 21... Nxf4 {[%clk 0:00:56.7]} 22. Ree1
{[%clk 0:00:07.7]} 22... e6 {[%clk 0:00:52]} 23. Ne2 {[%clk 0:00:06.8]} 23...
Nxe2 {[%clk 0:00:51.4]} 24. Qxe2 {[%clk 0:00:05.5]} 24... Rbe8 {[%clk
0:00:44.7]} 25. dxe6 {[%clk 0:00:04.8]} 25... Rxe6 {[%clk 0:00:43.5]} 26. Qf3
{[%clk 0:00:04.4]} 26... Rfe8 {[%clk 0:00:43.5]} 27. Re2 {[%clk 0:00:03.5]}
27... d5 {[%clk 0:00:42.3]} 28. Nd2 {[%clk 0:00:01.2]} 28... dxe4 {[%clk
0:00:42]} 29. Rxe4 {[%clk 0:00:01.4]} 29... Rxe4 {[%clk 0:00:38.1]} 30. Nxe4
{[%clk 0:00:01.9]} 30... Qc6 {[%clk 0:00:35.5]} 31. Ng5 {[%clk 0:00:01.1]} 31...
Qf6 {[%clk 0:00:29.8]} 0-1

[Event "*** SCC Grand Prix: Titled Tuesday Blitz"]
[Site "Chess.com"]
[Date "2020.06.23"]
[Round "1"]
[White "jonaszmb"]
[Black "axlbvRR"]
[Result "1-0"]
[WhiteElo "2471"]
[BlackElo "1868"]
[TimeControl "180+1"]
[EndTime "10:06:52 PDT"]
[Termination "jonaszmb won on time"]

1. d4 {[%clk 0:02:59.9]} 1... e6 {[%clk 0:02:56.8]} 2. c4 {[%clk 0:03:00]} 2...
d5 {[%clk 0:02:52.9]} 3. Nf3 {[%clk 0:03:00]} 3... Nf6 {[%clk 0:02:52.8]} 4. g3
{[%clk 0:03:00.2]} 4... Be7 {[%clk 0:02:52.7]} 5. Bg2 {[%clk 0:03:00.5]} 5...
O-O {[%clk 0:02:52.8]} 6. O-O {[%clk 0:03:00.6]} 6... Nbd7 {[%clk 0:02:51.8]} 7.
Nc3 {[%clk 0:02:57.8]} 7... dxc4 {[%clk 0:02:49.3]} 8. e4 {[%clk 0:02:57]} 8...
Nb6 {[%clk 0:02:43.3]} 9. Qe2 {[%clk 0:02:55.3]} 9... c5 {[%clk 0:02:39.1]} 10.
Rd1 {[%clk 0:02:49.9]} 10... cxd4 {[%clk 0:02:36]} 11. Nxd4 {[%clk 0:02:50.8]}
11... Qe8 {[%clk 0:02:35.4]} 12. Ncb5 {[%clk 0:02:39.5]} 12... Bd8 {[%clk
0:02:26.2]} 13. Nd6 {[%clk 0:02:35.8]} 13... Qe7 {[%clk 0:02:22.3]} 14. e5
{[%clk 0:02:35.7]} 14... Nfd5 {[%clk 0:02:20.8]} 15. h4 {[%clk 0:02:26.4]} 15...
h6 {[%clk 0:02:12.4]} 16. b3 {[%clk 0:02:07.6]} 16... Nc3 {[%clk 0:02:01.4]} 17.
Qc2 {[%clk 0:02:02.7]} 17... Nxd1 {[%clk 0:01:57.1]} 18. Qxd1 {[%clk 0:02:03.6]}
18... Bc7 {[%clk 0:01:53.7]} 19. N4b5 {[%clk 0:01:50.3]} 19... Bb8 {[%clk
0:01:52.7]} 20. Ba3 {[%clk 0:01:28.9]} 20... Rd8 {[%clk 0:01:26.3]} 21. Qg4
{[%clk 0:01:20.1]} 21... Qd7 {[%clk 0:01:15.6]} 22. bxc4 {[%clk 0:01:17.2]}
22... a6 {[%clk 0:01:13.8]} 23. Nc3 {[%clk 0:01:06]} 23... Bxd6 {[%clk
0:01:04.5]} 24. Bxd6 {[%clk 0:01:06.9]} 24... Na4 {[%clk 0:00:59.9]} 25. Ne4
{[%clk 0:01:06.3]} 25... Kh7 {[%clk 0:00:53.1]} 26. c5 {[%clk 0:00:58]} 26...
Ra7 {[%clk 0:00:43.6]} 27. Qh5 {[%clk 0:00:54.3]} 27... Qe8 {[%clk 0:00:41.8]}
28. Nf6+ {[%clk 0:00:49.2]} 28... gxf6 {[%clk 0:00:40.6]} 29. exf6 {[%clk
0:00:50.1]} 29... Rxd6 {[%clk 0:00:35.3]} 30. Be4+ {[%clk 0:00:47.3]} 30... Kg8
{[%clk 0:00:26.1]} 31. Qg4+ {[%clk 0:00:47.4]} 1-0

[Event "*** SCC Grand Prix: Titled Tuesday Blitz"]
[Site "Chess.com"]
[Date "2020.06.23"]
[Round "1"]
[White "Loveforever_Pepi"]
[Black "Cubitas"]
[Result "0-1"]
[WhiteElo "2196"]
[BlackElo "2553"]
[TimeControl "180+1"]
[EndTime "10:06:55 PDT"]
[Termination "Cubitas won on time"]

1. e4 {[%clk 0:02:59.2]} 1... c5 {[%clk 0:02:59.7]} 2. Nf3 {[%clk 0:02:56.4]}
2... Nc6 {[%clk 0:03:00.1]} 3. Bb5 {[%clk 0:02:55.7]} 3... g6 {[%clk 0:02:59.3]}
4. Bxc6 {[%clk 0:02:55.1]} 4... dxc6 {[%clk 0:03:00.2]} 5. d3 {[%clk 0:02:54.5]}
5... Bg7 {[%clk 0:03:00.7]} 6. h3 {[%clk 0:02:53.8]} 6... b6 {[%clk 0:03:00.9]}
7. Nc3 {[%clk 0:02:51.8]} 7... Nh6 {[%clk 0:03:00.1]} 8. Be3 {[%clk 0:02:33.2]}
8... f6 {[%clk 0:02:59.7]} 9. Qd2 {[%clk 0:02:33]} 9... Nf7 {[%clk 0:02:59.8]}
10. a3 {[%clk 0:02:27.4]} 10... O-O {[%clk 0:02:49]} 11. b4 {[%clk 0:02:22.7]}
11... cxb4 {[%clk 0:02:27.5]} 12. axb4 {[%clk 0:02:22]} 12... f5 {[%clk
0:02:19.1]} 13. O-O {[%clk 0:01:34.2]} 13... e5 {[%clk 0:01:36.7]} 14. Qe2
{[%clk 0:01:18.2]} 14... f4 {[%clk 0:01:33.9]} 15. Bd2 {[%clk 0:01:18.1]} 15...
g5 {[%clk 0:01:30.8]} 16. Nh2 {[%clk 0:01:14.8]} 16... Be6 {[%clk 0:01:29.3]}
17. Ra3 {[%clk 0:00:59.5]} 17... Qd7 {[%clk 0:01:28.7]} 18. Rfa1 {[%clk
0:00:57.9]} 18... Nd6 {[%clk 0:01:18]} 19. Qh5 {[%clk 0:00:48.5]} 19... h6
{[%clk 0:01:13.2]} 20. Ng4 {[%clk 0:00:47.8]} 20... Kh7 {[%clk 0:01:07.3]} 21.
Nh2 {[%clk 0:00:45.2]} 21... Ne8 {[%clk 0:00:49.3]} 22. Qf3 {[%clk 0:00:39]}
22... Nf6 {[%clk 0:00:49]} 23. Qe2 {[%clk 0:00:33.8]} 23... h5 {[%clk
0:00:48.8]} 24. f3 {[%clk 0:00:29.2]} 24... g4 {[%clk 0:00:48.9]} 25. hxg4
{[%clk 0:00:28.6]} 25... hxg4 {[%clk 0:00:49.8]} 26. fxg4 {[%clk 0:00:28.2]}
26... Nxg4 {[%clk 0:00:49.9]} 27. Nxg4 {[%clk 0:00:27.4]} 27... Bxg4 {[%clk
0:00:50.8]} 28. Qf2 {[%clk 0:00:26.6]} 28... Rf6 {[%clk 0:00:46.1]} 29. b5
{[%clk 0:00:19.8]} 29... Bf8 {[%clk 0:00:29.9]} 30. bxc6 {[%clk 0:00:19]} 30...
Rxc6 {[%clk 0:00:26.3]} 31. Qh4+ {[%clk 0:00:16.6]} 31... Rh6 {[%clk 0:00:25.3]}
0-1

[Event "*** SCC Grand Prix: Titled Tuesday Blitz"]
[Site "Chess.com"]
[Date "2020.06.23"]
[Round "1"]
[White "CarlssonLudvig"]
[Black "GOGIEFF"]
[Result "0-1"]
[WhiteElo "2444"]
[BlackElo "2893"]
[TimeControl "180+1"]
[EndTime "10:06:56 PDT"]
[Termination "GOGIEFF won on time"]

1. d4 {[%clk 0:03:00.3]} 1... Nf6 {[%clk 0:02:58.8]} 2. c4 {[%clk 0:02:59.7]}
2... g6 {[%clk 0:02:58.9]} 3. Nc3 {[%clk 0:02:58.8]} 3... Bg7 {[%clk 0:02:58.9]}
4. e4 {[%clk 0:02:58.5]} 4... d6 {[%clk 0:02:59.1]} 5. Be2 {[%clk 0:02:58.4]}
5... O-O {[%clk 0:02:58.5]} 6. Nf3 {[%clk 0:02:58.3]} 6... e5 {[%clk 0:02:57.7]}
7. dxe5 {[%clk 0:02:57.9]} 7... dxe5 {[%clk 0:02:58.6]} 8. Qxd8 {[%clk
0:02:58.5]} 8... Rxd8 {[%clk 0:02:58.6]} 9. Bg5 {[%clk 0:02:58.9]} 9... Nbd7
{[%clk 0:02:57.8]} 10. O-O-O {[%clk 0:02:53]} 10... Re8 {[%clk 0:02:53.4]} 11.
Nb5 {[%clk 0:02:44.6]} 11... Rb8 {[%clk 0:02:45.9]} 12. Nxc7 {[%clk 0:02:43.3]}
12... Rf8 {[%clk 0:02:46.1]} 13. Nd5 {[%clk 0:02:39.9]} 13... b6 {[%clk
0:02:31.4]} 14. Nd2 {[%clk 0:01:52.2]} 14... Bb7 {[%clk 0:02:21.6]} 15. Kb1
{[%clk 0:01:48.7]} 15... h6 {[%clk 0:02:14.2]} 16. Be3 {[%clk 0:01:46]} 16...
Kh7 {[%clk 0:02:13.5]} 17. Nxf6+ {[%clk 0:01:40.2]} 17... Nxf6 {[%clk
0:02:12.4]} 18. f3 {[%clk 0:01:39.4]} 18... Nh5 {[%clk 0:02:02]} 19. g3 {[%clk
0:01:29.9]} 19... f5 {[%clk 0:02:01]} 20. Bd3 {[%clk 0:01:02.4]} 20... Rbd8
{[%clk 0:01:42.1]} 21. Kc2 {[%clk 0:01:00.7]} 21... Kh8 {[%clk 0:01:27.1]} 22.
Rhf1 {[%clk 0:00:57.2]} 22... f4 {[%clk 0:01:20.3]} 23. Bf2 {[%clk 0:00:50]}
23... fxg3 {[%clk 0:01:20.5]} 24. hxg3 {[%clk 0:00:50.1]} 24... Bf6 {[%clk
0:01:21]} 25. Be3 {[%clk 0:00:27.9]} 25... Kg7 {[%clk 0:01:19.5]} 26. Rg1 {[%clk
0:00:23.7]} 26... Be7 {[%clk 0:01:19.6]} 27. Be2 {[%clk 0:00:16.1]} 27... g5
{[%clk 0:01:11.8]} 28. Nb1 {[%clk 0:00:15.2]} 28... g4 {[%clk 0:01:09.6]} 29.
fxg4 {[%clk 0:00:07.5]} 29... Bxe4+ {[%clk 0:01:09.2]} 30. Bd3 {[%clk
0:00:07.8]} 30... Rxd3 {[%clk 0:01:05.5]} 31. Rxd3 {[%clk 0:00:08.7]} 31... Nf6
{[%clk 0:01:05.6]} 32. g5 {[%clk 0:00:08.4]} 32... Ng4 {[%clk 0:00:59.8]} 33.
gxh6+ {[%clk 0:00:06.9]} 33... Kg6 {[%clk 0:01:00.5]} 34. Kd2 {[%clk 0:00:05.7]}
34... Bxd3 {[%clk 0:00:59.5]} 35. Kxd3 {[%clk 0:00:06.6]} 35... Rf3 {[%clk
0:00:59.6]} 36. Re1 {[%clk 0:00:06.3]} 36... Bg5 {[%clk 0:00:55.9]} 37. Nd2
{[%clk 0:00:05.8]} 37... Rxe3+ {[%clk 0:00:51.4]} 38. Rxe3 {[%clk 0:00:06.1]}
38... Bxe3 {[%clk 0:00:52.3]} 39. Nf3 {[%clk 0:00:02.6]} 39... Bxh6 {[%clk
0:00:52]} 40. Ke4 {[%clk 0:00:02.8]} 40... Kf6 {[%clk 0:00:52.4]} 41. b4 {[%clk
0:00:02.5]} 41... Ke6 {[%clk 0:00:52.7]} 42. c5 {[%clk 0:00:02.3]} 42... Nf6+
{[%clk 0:00:52.7]} 43. Kd3 {[%clk 0:00:01.3]} 43... e4+ {[%clk 0:00:53.1]} 0-1

[Event "*** SCC Grand Prix: Titled Tuesday Blitz"]
[Site "Chess.com"]
[Date "2020.06.23"]
[Round "1"]
[White "DishonorOnYourCow"]
[Black "Baby_Legs"]
[Result "0-1"]
[WhiteElo "2306"]
[BlackElo "2624"]
[TimeControl "180+1"]
[EndTime "10:06:57 PDT"]
[Termination "Baby_Legs won on time"]

1. d4 {[%clk 0:03:00.1]} 1... d5 {[%clk 0:02:58.8]} 2. c4 {[%clk 0:03:00]} 2...
e6 {[%clk 0:02:58.3]} 3. Nc3 {[%clk 0:02:57.8]} 3... Bb4 {[%clk 0:02:58.3]} 4.
Bf4 {[%clk 0:02:54.4]} 4... Nf6 {[%clk 0:02:55.7]} 5. e3 {[%clk 0:02:54.7]} 5...
O-O {[%clk 0:02:55]} 6. cxd5 {[%clk 0:02:54.5]} 6... Nxd5 {[%clk 0:02:53.8]} 7.
Qb3 {[%clk 0:02:49.3]} 7... c5 {[%clk 0:02:48.1]} 8. Bg3 {[%clk 0:02:40.6]} 8...
cxd4 {[%clk 0:02:45.6]} 9. exd4 {[%clk 0:02:40.7]} 9... Nc6 {[%clk 0:02:39.9]}
10. Nf3 {[%clk 0:02:34.8]} 10... Ba5 {[%clk 0:02:14]} 11. Rd1 {[%clk 0:02:23.6]}
11... Qb6 {[%clk 0:02:02.3]} 12. Qc2 {[%clk 0:01:47.8]} 12... Qxb2 {[%clk
0:01:41.1]} 13. Qxb2 {[%clk 0:01:42.4]} 13... Bxc3+ {[%clk 0:01:37]} 14. Qxc3
{[%clk 0:01:42.3]} 14... Nxc3 {[%clk 0:01:37.9]} 15. Rd2 {[%clk 0:01:39.8]}
15... Nb4 {[%clk 0:01:29.2]} 16. Bd6 {[%clk 0:01:29.9]} 16... Nbd5 {[%clk
0:01:23.7]} 17. Bxf8 {[%clk 0:01:28.4]} 17... Kxf8 {[%clk 0:01:24.6]} 18. Bc4
{[%clk 0:01:27.2]} 18... Nf4 {[%clk 0:01:22.3]} 19. O-O {[%clk 0:01:25.4]} 19...
b5 {[%clk 0:01:22.3]} 20. Bb3 {[%clk 0:01:24.3]} 20... a5 {[%clk 0:01:16.4]} 21.
Rc2 {[%clk 0:01:13.4]} 21... a4 {[%clk 0:01:11.2]} 22. Kh1 {[%clk 0:00:47.7]}
22... Nfe2 {[%clk 0:00:54.5]} 23. Ng1 {[%clk 0:00:32.7]} 23... axb3 {[%clk
0:00:54.3]} 24. axb3 {[%clk 0:00:22]} 24... Nxg1 {[%clk 0:00:53.7]} 25. Kxg1
{[%clk 0:00:22.6]} 25... b4 {[%clk 0:00:52.3]} 26. f3 {[%clk 0:00:16.9]} 26...
Bb7 {[%clk 0:00:51.8]} 27. Re1 {[%clk 0:00:14.3]} 27... Bd5 {[%clk 0:00:51.6]}
28. Rb2 {[%clk 0:00:13.8]} 28... Ke7 {[%clk 0:00:51.2]} 29. Kf2 {[%clk
0:00:08.3]} 29... Kd6 {[%clk 0:00:51.4]} 30. Ke3 {[%clk 0:00:07.7]} 30... Ra3
{[%clk 0:00:51]} 31. Kd2 {[%clk 0:00:07.9]} 31... Kc6 {[%clk 0:00:49.5]} 32. Rc1
{[%clk 0:00:07.5]} 32... Kb5 {[%clk 0:00:49.2]} 33. Kd3 {[%clk 0:00:04.7]} 33...
Rxb3 {[%clk 0:00:44]} 34. Rxb3 {[%clk 0:00:04.5]} 34... Bxb3 {[%clk 0:00:44.9]}
35. Ra1 {[%clk 0:00:04.6]} 35... Bc4+ {[%clk 0:00:44.5]} 36. Kc2 {[%clk
0:00:04.7]} 36... Na4 {[%clk 0:00:43.8]} 37. Re1 {[%clk 0:00:03.6]} 37... b3+
{[%clk 0:00:44]} 38. Kb1 {[%clk 0:00:03.8]} 38... Kb4 {[%clk 0:00:44.1]} 39. Re5
{[%clk 0:00:01.5]} 39... Bd5 {[%clk 0:00:43.8]} 40. Re3 {[%clk 0:00:01]} 40...
f5 {[%clk 0:00:42.9]} 0-1

[Event "*** SCC Grand Prix: Titled Tuesday Blitz"]
[Site "Chess.com"]
[Date "2020.06.23"]
[Round "1"]
[White "korbul"]
[Black "felipelobo"]
[Result "1-0"]
[WhiteElo "2509"]
[BlackElo "2098"]
[TimeControl "180+1"]
[EndTime "10:06:57 PDT"]
[Termination "korbul won by resignation"]

1. e4 {[%clk 0:03:00.4]} 1... c5 {[%clk 0:02:59.4]} 2. Nf3 {[%clk 0:02:59]} 2...
d6 {[%clk 0:02:59.6]} 3. d4 {[%clk 0:02:58.4]} 3... cxd4 {[%clk 0:03:00.5]} 4.
Nxd4 {[%clk 0:02:58.6]} 4... Nf6 {[%clk 0:03:00.4]} 5. Nc3 {[%clk 0:02:58.5]}
5... a6 {[%clk 0:03:00.6]} 6. f4 {[%clk 0:02:57.4]} 6... e5 {[%clk 0:02:59.2]}
7. Nf3 {[%clk 0:02:57.1]} 7... Qc7 {[%clk 0:02:44.3]} 8. a4 {[%clk 0:02:54.7]}
8... Be7 {[%clk 0:02:43.3]} 9. Bd3 {[%clk 0:02:54]} 9... O-O {[%clk 0:02:40.3]}
10. O-O {[%clk 0:02:53.2]} 10... Be6 {[%clk 0:02:37]} 11. Kh1 {[%clk 0:02:52.2]}
11... Nbd7 {[%clk 0:02:33.1]} 12. fxe5 {[%clk 0:02:41.9]} 12... dxe5 {[%clk
0:02:29.2]} 13. Nh4 {[%clk 0:02:35.2]} 13... Nc5 {[%clk 0:02:16.6]} 14. Bg5
{[%clk 0:02:28]} 14... h6 {[%clk 0:02:08.9]} 15. Bxf6 {[%clk 0:02:26.4]} 15...
Bxf6 {[%clk 0:02:04.3]} 16. Nf5 {[%clk 0:02:25.5]} 16... Bxf5 {[%clk 0:02:02.7]}
17. Nd5 {[%clk 0:02:22.3]} 17... Qd8 {[%clk 0:01:58.8]} 18. Rxf5 {[%clk
0:02:20.2]} 18... Bg5 {[%clk 0:01:52.3]} 19. Qg4 {[%clk 0:02:17.5]} 19... Nxd3
{[%clk 0:01:50.7]} 20. cxd3 {[%clk 0:02:15.9]} 20... Kh8 {[%clk 0:01:42.8]} 21.
Raf1 {[%clk 0:02:06.4]} 21... Rc8 {[%clk 0:01:43]} 22. g3 {[%clk 0:01:54.1]}
22... Qd7 {[%clk 0:01:35.6]} 23. Rxg5 {[%clk 0:01:49.1]} 23... f5 {[%clk
0:01:30.8]} 24. Rgxf5 {[%clk 0:01:46.2]} 24... Rxf5 {[%clk 0:01:29.5]} 25. Qxf5
{[%clk 0:01:45.3]} 25... Qxf5 {[%clk 0:00:26.4]} 26. Rxf5 {[%clk 0:01:43.6]}
26... Rc1+ {[%clk 0:00:24.7]} 27. Kg2 {[%clk 0:01:42.3]} 27... Rc2+ {[%clk
0:00:25]} 28. Rf2 {[%clk 0:01:39.6]} 28... Rc8 {[%clk 0:00:21.5]} 29. h4 {[%clk
0:01:39.2]} 29... Kh7 {[%clk 0:00:21]} 30. h5 {[%clk 0:01:39]} 30... b5 {[%clk
0:00:19.7]} 31. axb5 {[%clk 0:01:37.5]} 31... axb5 {[%clk 0:00:20.6]} 32. Ne7
{[%clk 0:01:35.8]} 32... Re8 {[%clk 0:00:18.5]} 33. Ng6 {[%clk 0:01:34.9]} 33...
b4 {[%clk 0:00:17.8]} 34. Rf8 {[%clk 0:01:33.2]} 34... b3 {[%clk 0:00:16.2]} 35.
d4 {[%clk 0:01:16.4]} 35... Rxf8 {[%clk 0:00:10.2]} 36. Nxf8+ {[%clk 0:01:15.3]}
36... Kg8 {[%clk 0:00:10.7]} 37. d5 {[%clk 0:01:13.3]} 37... Kf7 {[%clk
0:00:11.6]} 38. Nd7 {[%clk 0:01:11]} 38... Ke7 {[%clk 0:00:12.5]} 39. Nc5 {[%clk
0:01:10.5]} 39... Kd6 {[%clk 0:00:12.6]} 40. Nxb3 {[%clk 0:01:10.2]} 40... Ke7
{[%clk 0:00:12.8]} 41. Nd2 {[%clk 0:01:09.2]} 41... g5 {[%clk 0:00:12.7]} 42. g4
{[%clk 0:01:08.2]} 42... Kf6 {[%clk 0:00:11.8]} 43. Kf3 {[%clk 0:01:08.2]} 43...
Kg7 {[%clk 0:00:11.2]} 44. Ke3 {[%clk 0:01:08.3]} 44... Kf7 {[%clk 0:00:10.6]}
45. Kd3 {[%clk 0:01:08.4]} 45... Ke7 {[%clk 0:00:11.5]} 46. Kc4 {[%clk
0:01:08.6]} 46... Kd7 {[%clk 0:00:12.4]} 47. Kc5 {[%clk 0:01:08.2]} 47... Kc7
{[%clk 0:00:13.3]} 48. Nf3 {[%clk 0:01:07.4]} 48... Kd7 {[%clk 0:00:13.4]} 49.
Nxg5 {[%clk 0:01:07.3]} 49... Ke7 {[%clk 0:00:13.9]} 50. Nf3 {[%clk 0:01:07.2]}
50... Kf6 {[%clk 0:00:13.6]} 51. b4 {[%clk 0:01:07.1]} 51... Ke7 {[%clk
0:00:12.4]} 52. b5 {[%clk 0:01:07]} 1-0

[Event "*** SCC Grand Prix: Titled Tuesday Blitz"]
[Site "Chess.com"]
[Date "2020.06.23"]
[Round "1"]
[White "yamalchess"]
[Black "hansen"]
[Result "0-1"]
[WhiteElo "2463"]
[BlackElo "3001"]
[TimeControl "180+1"]
[EndTime "10:06:58 PDT"]
[Termination "hansen won by resignation"]

1. d4 {[%clk 0:03:00.9]} 1... Nf6 {[%clk 0:02:55.6]} 2. c4 {[%clk 0:03:00.2]}
2... g6 {[%clk 0:02:53]} 3. Nc3 {[%clk 0:03:00.2]} 3... d5 {[%clk 0:02:51.8]} 4.
Bf4 {[%clk 0:02:59.3]} 4... Bg7 {[%clk 0:02:51.7]} 5. Qa4+ {[%clk 0:02:59.3]}
5... Bd7 {[%clk 0:02:41.5]} 6. Qb3 {[%clk 0:02:58.3]} 6... dxc4 {[%clk
0:02:36.5]} 7. Qxb7 {[%clk 0:02:57.6]} 7... Nc6 {[%clk 0:02:28.6]} 8. d5 {[%clk
0:02:55.8]} 8... Nd4 {[%clk 0:00:57.9]} 9. O-O-O {[%clk 0:02:54.7]} 9... Ng4
{[%clk 0:00:51.6]} 10. Nh3 {[%clk 0:02:47.2]} 10... Nf5 {[%clk 0:00:33.3]} 11.
Bxc7 {[%clk 0:02:29.9]} 11... Qc8 {[%clk 0:00:33.3]} 12. Qxc8+ {[%clk
0:02:28.7]} 12... Rxc8 {[%clk 0:00:34.2]} 13. Bf4 {[%clk 0:02:28.1]} 13... O-O
{[%clk 0:00:30.4]} 14. e4 {[%clk 0:02:14.9]} 14... Nd6 {[%clk 0:00:29.1]} 15. f3
{[%clk 0:02:10.4]} 15... Ne5 {[%clk 0:00:29.3]} 16. Nf2 {[%clk 0:02:09.3]} 16...
f5 {[%clk 0:00:29.8]} 17. Bg5 {[%clk 0:02:05.2]} 17... Rfe8 {[%clk 0:00:21]} 18.
f4 {[%clk 0:02:00.9]} 18... Nef7 {[%clk 0:00:21]} 19. e5 {[%clk 0:01:56.3]}
19... Nxg5 {[%clk 0:00:21.2]} 20. exd6 {[%clk 0:01:55.5]} 20... Nf7 {[%clk
0:00:20.6]} 21. dxe7 {[%clk 0:01:54.1]} 21... Nd6 {[%clk 0:00:20.8]} 22. Be2
{[%clk 0:01:51.8]} 22... Rxe7 {[%clk 0:00:20.7]} 23. Bf3 {[%clk 0:01:51.9]}
23... Rce8 {[%clk 0:00:21.1]} 24. Kd2 {[%clk 0:01:42.2]} 24... Bh6 {[%clk
0:00:21.1]} 25. g3 {[%clk 0:01:37.9]} 25... g5 {[%clk 0:00:21.5]} 26. fxg5
{[%clk 0:01:30.4]} 26... Bxg5+ {[%clk 0:00:21.6]} 27. Kc2 {[%clk 0:01:29.8]}
27... Re3 {[%clk 0:00:21.8]} 28. Bh5 {[%clk 0:01:27.6]} 28... Rb8 {[%clk
0:00:22.1]} 29. Rhe1 {[%clk 0:01:26.4]} 29... Kg7 {[%clk 0:00:22.4]} 30. Nh3
{[%clk 0:01:21.7]} 30... Rxe1 {[%clk 0:00:19.7]} 31. Rxe1 {[%clk 0:01:20.7]}
31... Bf6 {[%clk 0:00:20.6]} 32. Nf4 {[%clk 0:01:17.7]} 32... Ne4 {[%clk
0:00:19.4]} 33. Nfe2 {[%clk 0:01:03.4]} 33... Nc5 {[%clk 0:00:16.3]} 34. Rf1
{[%clk 0:01:02.6]} 34... Nd3 {[%clk 0:00:15.7]} 35. Nf4 {[%clk 0:01:01.9]} 35...
Rxb2+ {[%clk 0:00:15.3]} 36. Kd1 {[%clk 0:01:01.1]} 36... Bxc3 {[%clk
0:00:15.7]} 37. Nxd3 {[%clk 0:00:38.9]} 37... cxd3 {[%clk 0:00:15.3]} 38. Kc1
{[%clk 0:00:35.6]} 38... Rxa2 {[%clk 0:00:15.1]} 0-1

[Event "*** SCC Grand Prix: Titled Tuesday Blitz"]
[Site "Chess.com"]
[Date "2020.06.23"]
[Round "1"]
[White "Aleksey_Sorokin"]
[Black "Grandmaster2B"]
[Result "1-0"]
[WhiteElo "2880"]
[BlackElo "2443"]
[TimeControl "180+1"]
[EndTime "10:06:58 PDT"]
[Termination "Aleksey_Sorokin won by resignation"]

1. d4 {[%clk 0:02:57.8]} 1... Nf6 {[%clk 0:02:58.4]} 2. c4 {[%clk 0:02:57.4]}
2... e6 {[%clk 0:02:58.5]} 3. Nf3 {[%clk 0:02:56.8]} 3... b6 {[%clk 0:02:58.4]}
4. a3 {[%clk 0:02:55.1]} 4... Bb7 {[%clk 0:02:54.9]} 5. Nc3 {[%clk 0:02:54.8]}
5... d5 {[%clk 0:02:53.4]} 6. cxd5 {[%clk 0:02:53.8]} 6... Nxd5 {[%clk
0:02:54.3]} 7. Qc2 {[%clk 0:02:53.4]} 7... Be7 {[%clk 0:02:54.6]} 8. e4 {[%clk
0:02:45.1]} 8... Nxc3 {[%clk 0:02:54.6]} 9. bxc3 {[%clk 0:02:46]} 9... c5 {[%clk
0:02:50.3]} 10. Bb5+ {[%clk 0:02:45.5]} 10... Nd7 {[%clk 0:02:40.6]} 11. Ne5
{[%clk 0:02:40.8]} 11... Bc8 {[%clk 0:02:37.1]} 12. Bc6 {[%clk 0:02:10.8]} 12...
Rb8 {[%clk 0:02:20.4]} 13. Bf4 {[%clk 0:02:09.7]} 13... O-O {[%clk 0:02:11.4]}
14. Nxd7 {[%clk 0:02:07.7]} 14... Bxd7 {[%clk 0:02:12.3]} 15. Bxd7 {[%clk
0:02:07.9]} 15... Qxd7 {[%clk 0:02:11.9]} 16. Bxb8 {[%clk 0:02:08.4]} 16... Rxb8
{[%clk 0:02:11.9]} 17. O-O {[%clk 0:01:59.7]} 17... Rc8 {[%clk 0:02:02.5]} 18.
Qd3 {[%clk 0:01:58.3]} 18... Bf6 {[%clk 0:01:38.1]} 19. Rfd1 {[%clk 0:01:52.6]}
19... Rd8 {[%clk 0:01:36.9]} 20. Rac1 {[%clk 0:01:45.4]} 20... h6 {[%clk
0:01:26.5]} 21. d5 {[%clk 0:01:44.1]} 21... exd5 {[%clk 0:01:21.2]} 22. exd5
{[%clk 0:01:39.1]} 22... Qd6 {[%clk 0:01:18.4]} 23. c4 {[%clk 0:01:37]} 23...
Bd4 {[%clk 0:01:17.7]} 24. Rc2 {[%clk 0:01:36.6]} 24... g6 {[%clk 0:01:14.9]}
25. Re2 {[%clk 0:01:35.5]} 25... Kg7 {[%clk 0:01:13]} 26. g3 {[%clk 0:01:35.4]}
26... h5 {[%clk 0:01:11.5]} 27. h4 {[%clk 0:01:28.5]} 27... Rh8 {[%clk
0:01:04.9]} 28. Kg2 {[%clk 0:01:26.8]} 28... b5 {[%clk 0:00:58.7]} 29. cxb5
{[%clk 0:01:25.1]} 29... Qxd5+ {[%clk 0:00:59]} 30. Qf3 {[%clk 0:01:22.9]} 30...
Qc4 {[%clk 0:00:49]} 31. Re7 {[%clk 0:01:21.5]} 31... Rf8 {[%clk 0:00:48.6]} 32.
Qc6 {[%clk 0:01:00.2]} 32... Qb3 {[%clk 0:00:20.4]} 33. Qf3 {[%clk 0:00:54.7]}
33... Qc4 {[%clk 0:00:15.8]} 34. Rxa7 {[%clk 0:00:53.3]} 34... Qxb5 {[%clk
0:00:16.1]} 35. Re1 {[%clk 0:00:53.2]} 35... Bf6 {[%clk 0:00:08.8]} 36. Rd1
{[%clk 0:00:49.3]} 36... c4 {[%clk 0:00:07]} 37. Rd6 {[%clk 0:00:48.5]} 37...
Qe5 {[%clk 0:00:04.2]} 38. Raa6 {[%clk 0:00:39.2]} 38... Be7 {[%clk 0:00:03]}
39. Rd5 {[%clk 0:00:39]} 39... Qb2 {[%clk 0:00:01.6]} 40. Rd7 {[%clk 0:00:35.8]}
40... Bf6 {[%clk 0:00:01.6]} 41. Rc7 {[%clk 0:00:35.3]} 41... c3 {[%clk
0:00:01.5]} 1-0